[Event "*** Titled Tuesday Blitz"]
[Site "Chess.com"]
[Date "2020.05.05"]
[Round "3"]
[White "Ziachess74"]
[Black "smshk35"]
[Result "0-1"]
[WhiteElo "2559"]
[BlackElo "2381"]
[TimeControl "180+1"]
[EndTime "10:31:07 PDT"]
[Termination "smshk35 won by resignation"]

1. d4 {[%clk 0:03:00.9]} 1... Nf6 {[%clk 0:02:58.8]} 2. c4 {[%clk 0:03:00.9]}
2... g6 {[%clk 0:02:58.8]} 3. Nc3 {[%clk 0:03:00.4]} 3... Bg7 {[%clk 0:02:59.2]}
4. e4 {[%clk 0:03:00.6]} 4... d6 {[%clk 0:02:59.6]} 5. Nf3 {[%clk 0:03:01.1]}
5... O-O {[%clk 0:02:59.9]} 6. h3 {[%clk 0:03:01.3]} 6... c5 {[%clk 0:02:58.8]}
7. d5 {[%clk 0:03:00.9]} 7... b5 {[%clk 0:02:57.4]} 8. cxb5 {[%clk 0:02:58]}
8... a6 {[%clk 0:02:57.7]} 9. a4 {[%clk 0:02:54.5]} 9... axb5 {[%clk 0:02:54.1]}
10. Bxb5 {[%clk 0:02:53.9]} 10... Ba6 {[%clk 0:02:52.9]} 11. Bxa6 {[%clk
0:02:50.1]} 11... Nxa6 {[%clk 0:02:53]} 12. O-O {[%clk 0:02:49.6]} 12... Qb6
{[%clk 0:02:49.5]} 13. Nd2 {[%clk 0:02:46.1]} 13... Rfb8 {[%clk 0:02:46.9]} 14.
Nc4 {[%clk 0:02:43.8]} 14... Qb4 {[%clk 0:02:46.9]} 15. Qe2 {[%clk 0:02:42.8]}
15... Nc7 {[%clk 0:02:40.5]} 16. Bd2 {[%clk 0:02:38.7]} 16... Qb7 {[%clk
0:02:20.9]} 17. Rfb1 {[%clk 0:02:26.8]} 17... Nd7 {[%clk 0:02:18.9]} 18. a5
{[%clk 0:02:09.7]} 18... Nb5 {[%clk 0:02:14.3]} 19. Na4 {[%clk 0:01:52.6]} 19...
Nd4 {[%clk 0:02:09.9]} 20. Qd1 {[%clk 0:01:47.5]} 20... Nb3 {[%clk 0:02:04.7]}
21. Ra3 {[%clk 0:01:46.6]} 21... Qb5 {[%clk 0:01:52.4]} 22. Nab6 {[%clk
0:00:32.7]} 22... Nxd2 {[%clk 0:01:47.8]} 23. Nxd2 {[%clk 0:00:18]} 23... Nxb6
{[%clk 0:01:46.4]} 24. axb6 {[%clk 0:00:17.6]} 24... Qxb6 {[%clk 0:01:42.5]} 25.
Rxa8 {[%clk 0:00:14.4]} 25... Rxa8 {[%clk 0:01:42.2]} 26. Nc4 {[%clk 0:00:13.8]}
26... Qb4 {[%clk 0:01:41.2]} 27. Qc2 {[%clk 0:00:13.7]} 27... Bd4 {[%clk
0:01:37]} 28. g3 {[%clk 0:00:13]} 28... Rb8 {[%clk 0:01:28]} 29. Kg2 {[%clk
0:00:13.1]} 29... Qb3 {[%clk 0:01:26]} 30. Rc1 {[%clk 0:00:10.1]} 30... Qa2
{[%clk 0:01:05.3]} 31. Qe2 {[%clk 0:00:07.2]} 31... Rb4 {[%clk 0:00:56.7]} 32.
Rc2 {[%clk 0:00:07]} 32... Qb1 {[%clk 0:00:51]} 33. h4 {[%clk 0:00:05.5]} 33...
h5 {[%clk 0:00:49.9]} 34. Rd2 {[%clk 0:00:03.7]} 34... Kg7 {[%clk 0:00:46.4]}
35. Rd1 {[%clk 0:00:01.7]} 35... Qa2 {[%clk 0:00:43.8]} 36. Rc1 {[%clk 0:00:02]}
36... Qa4 {[%clk 0:00:33.9]} 37. Rc2 {[%clk 0:00:02.9]} 37... Rb3 {[%clk
0:00:33.2]} 38. Qd1 {[%clk 0:00:02.7]} 38... Qb5 {[%clk 0:00:32.5]} 39. Qe2
{[%clk 0:00:02.4]} 39... Rb4 {[%clk 0:00:31.4]} 40. Qd3 {[%clk 0:00:02.2]} 40...
Rb3 {[%clk 0:00:31.1]} 41. Qd2 {[%clk 0:00:02.4]} 41... Qa6 {[%clk 0:00:24.6]}
42. Qe2 {[%clk 0:00:03.3]} 42... Qa1 {[%clk 0:00:24.5]} 43. g4 {[%clk
0:00:02.5]} 43... hxg4 {[%clk 0:00:23.7]} 44. Qxg4 {[%clk 0:00:03.4]} 44... Bxb2
{[%clk 0:00:21.4]} 45. Qe2 {[%clk 0:00:04.3]} 45... Bd4 {[%clk 0:00:20.2]} 46.
e5 {[%clk 0:00:03.7]} 46... dxe5 {[%clk 0:00:19.7]} 47. Nd2 {[%clk 0:00:03.2]}
47... Rb2 {[%clk 0:00:17.2]} 48. Nc4 {[%clk 0:00:01.7]} 48... Rxc2 {[%clk
0:00:16.7]} 49. Qxc2 {[%clk 0:00:02.6]} 49... Qc3 {[%clk 0:00:17.3]} 50. Qxc3
{[%clk 0:00:02.2]} 50... Bxc3 {[%clk 0:00:18.2]} 51. Kf3 {[%clk 0:00:02.9]}
51... f5 {[%clk 0:00:18.4]} 52. Ke3 {[%clk 0:00:03.1]} 52... Bd4+ {[%clk
0:00:17.5]} 53. Ke2 {[%clk 0:00:04]} 53... Kf6 {[%clk 0:00:18.1]} 54. f3 {[%clk
0:00:04.9]} 54... Kg7 {[%clk 0:00:17.7]} 55. Kd3 {[%clk 0:00:05.8]} 55... Kh6
{[%clk 0:00:18]} 56. d6 {[%clk 0:00:06.1]} 56... exd6 {[%clk 0:00:17.8]} 57.
Nxd6 {[%clk 0:00:07]} 57... Kh5 {[%clk 0:00:18.3]} 58. Nf7 {[%clk 0:00:05.6]}
58... Kxh4 {[%clk 0:00:18.4]} 59. Nh8 {[%clk 0:00:05.4]} 59... g5 {[%clk
0:00:17.2]} 60. Ng6+ {[%clk 0:00:04.9]} 60... Kg3 {[%clk 0:00:16.6]} 61. Ke2
{[%clk 0:00:05.8]} 61... c4 {[%clk 0:00:15.7]} 62. Ne7 {[%clk 0:00:05.3]} 62...
c3 {[%clk 0:00:13.6]} 63. Nxf5+ {[%clk 0:00:05.2]} 63... Kf4 {[%clk 0:00:14]}
64. Nd6 {[%clk 0:00:03.4]} 64... c2 {[%clk 0:00:12.8]} 65. Kd2 {[%clk
0:00:04.3]} 65... Kxf3 {[%clk 0:00:13.3]} 66. Kxc2 {[%clk 0:00:04.6]} 66... g4
{[%clk 0:00:13.8]} 67. Kd1 {[%clk 0:00:05.2]} 67... g3 {[%clk 0:00:13.6]} 68.
Nc4 {[%clk 0:00:05.2]} 68... g2 {[%clk 0:00:13.6]} 69. Nd2+ {[%clk 0:00:06.1]}
69... Kf2 {[%clk 0:00:13.2]} 70. Ne4+ {[%clk 0:00:05.7]} 70... Ke3 {[%clk
0:00:13.4]} 0-1

[Event "*** Titled Tuesday Blitz"]
[Site "Chess.com"]
[Date "2020.05.05"]
[Round "3"]
[White "zajka-molotok"]
[Black "grzechu96"]
[Result "1/2-1/2"]
[WhiteElo "2391"]
[BlackElo "2591"]
[TimeControl "180+1"]
[EndTime "10:31:09 PDT"]
[Termination "Game drawn by agreement"]

1. d4 {[%clk 0:03:00.9]} 1... d5 {[%clk 0:02:59.2]} 2. c4 {[%clk 0:03:00.4]}
2... c6 {[%clk 0:02:59.6]} 3. cxd5 {[%clk 0:03:00]} 3... cxd5 {[%clk 0:03:00.5]}
4. Nc3 {[%clk 0:03:00.2]} 4... Nc6 {[%clk 0:02:58]} 5. e4 {[%clk 0:02:59.1]}
5... dxe4 {[%clk 0:02:51.6]} 6. d5 {[%clk 0:02:58.4]} 6... Ne5 {[%clk
0:02:51.8]} 7. Qa4+ {[%clk 0:02:57.6]} 7... Bd7 {[%clk 0:02:50.9]} 8. Qxe4
{[%clk 0:02:57]} 8... Ng6 {[%clk 0:02:51.2]} 9. Nf3 {[%clk 0:02:44.9]} 9... Nf6
{[%clk 0:02:50.3]} 10. Qd4 {[%clk 0:02:38.1]} 10... e6 {[%clk 0:02:36]} 11. dxe6
{[%clk 0:02:37.4]} 11... Bxe6 {[%clk 0:02:36.4]} 12. Bb5+ {[%clk 0:02:36]} 12...
Bd7 {[%clk 0:02:36.6]} 13. O-O {[%clk 0:02:30.8]} 13... Be7 {[%clk 0:02:36.7]}
14. Re1 {[%clk 0:02:09.7]} 14... Bxb5 {[%clk 0:02:27]} 15. Qxd8+ {[%clk
0:01:56.5]} 15... Rxd8 {[%clk 0:02:22.5]} 16. Nxb5 {[%clk 0:01:56.5]} 16... a6
{[%clk 0:02:23.1]} 17. Nc3 {[%clk 0:01:52]} 17... O-O {[%clk 0:02:22.9]} 18. Bg5
{[%clk 0:01:51.1]} 18... h6 {[%clk 0:02:21.3]} 19. Be3 {[%clk 0:01:48]} 19...
Nd5 {[%clk 0:02:16.2]} 20. Nxd5 {[%clk 0:01:44.9]} 20... Rxd5 {[%clk 0:02:17.1]}
21. Rad1 {[%clk 0:01:39]} 21... Rfd8 {[%clk 0:02:16.7]} 22. Rxd5 {[%clk
0:01:38.7]} 22... Rxd5 {[%clk 0:02:17.6]} 23. Kf1 {[%clk 0:01:38.1]} 23... Bf6
{[%clk 0:02:17.3]} 24. b3 {[%clk 0:01:34]} 24... Ne7 {[%clk 0:02:00.5]} 25. Ke2
{[%clk 0:01:31.8]} 25... Nc6 {[%clk 0:02:00.8]} 26. Rd1 {[%clk 0:01:28.1]} 26...
Rxd1 {[%clk 0:01:57.3]} 27. Kxd1 {[%clk 0:01:27.7]} 27... Kf8 {[%clk 0:01:56.6]}
28. Kd2 {[%clk 0:01:23.8]} 28... Ke7 {[%clk 0:01:56.3]} 29. Bc5+ {[%clk
0:01:23.1]} 29... Ke6 {[%clk 0:01:55]} 30. Kd3 {[%clk 0:01:22.1]} 30... Kd5
{[%clk 0:01:55.5]} 31. Bf8 {[%clk 0:01:18.4]} 31... h5 {[%clk 0:01:54.2]} 32.
Nd2 {[%clk 0:01:13.9]} 32... Ne5+ {[%clk 0:01:50.6]} 33. Ke2 {[%clk 0:01:11.8]}
33... g6 {[%clk 0:01:44]} 34. h3 {[%clk 0:01:09.2]} 34... Nd7 {[%clk 0:01:37.4]}
35. Bb4 {[%clk 0:01:04.3]} 35... Bd4 {[%clk 0:01:23.8]} 36. Nf3 {[%clk
0:01:03.1]} 36... Bf6 {[%clk 0:01:18.5]} 37. Nd2 {[%clk 0:01:02.1]} 37... Ne5
{[%clk 0:01:14.6]} 38. Nf3 {[%clk 0:00:59.8]} 38... Nc6 {[%clk 0:01:14]} 39. Bf8
{[%clk 0:00:57.3]} 39... Na7 {[%clk 0:00:58.1]} 40. Kd3 {[%clk 0:00:50.5]} 40...
Nb5 {[%clk 0:00:57.1]} 41. Nd2 {[%clk 0:00:48.8]} 41... Nc3 {[%clk 0:00:54.5]}
42. a4 {[%clk 0:00:46.4]} 42... Nd1 {[%clk 0:00:49]} 43. f3 {[%clk 0:00:43.3]}
43... Nf2+ {[%clk 0:00:45.8]} 44. Ke2 {[%clk 0:00:42.6]} 44... Nh1 {[%clk
0:00:38.6]} 45. Ne4 {[%clk 0:00:41.3]} 45... Be5 {[%clk 0:00:39.1]} 46. Kd3
{[%clk 0:00:38.4]} 46... f5 {[%clk 0:00:38.5]} 47. Nc3+ {[%clk 0:00:37.5]} 47...
Kc6 {[%clk 0:00:20.6]} 48. Ne2 {[%clk 0:00:32.9]} 48... Kd5 {[%clk 0:00:19.2]}
49. Nc3+ {[%clk 0:00:32.4]} 49... Kc6 {[%clk 0:00:12.7]} 50. Ne2 {[%clk
0:00:32.1]} 50... Kd5 {[%clk 0:00:06.7]} 51. Bh6 {[%clk 0:00:31]} 51... Ng3
{[%clk 0:00:03.4]} 52. Nxg3 {[%clk 0:00:27.7]} 52... Bxg3 {[%clk 0:00:04.3]} 53.
Be3 {[%clk 0:00:26.9]} 53... Bd6 {[%clk 0:00:04.4]} 54. Bd4 {[%clk 0:00:26.5]}
54... Bc7 {[%clk 0:00:04.6]} 55. Bf2 {[%clk 0:00:23.6]} 55... Bd8 {[%clk
0:00:04.5]} 56. Bd4 {[%clk 0:00:23.4]} 56... Be7 {[%clk 0:00:05]} 57. Bf2 {[%clk
0:00:23]} 57... Bf6 {[%clk 0:00:05.6]} 58. Be3 {[%clk 0:00:23.2]} 58... Be5
{[%clk 0:00:05.7]} 59. Bf2 {[%clk 0:00:23.1]} 59... Bd6 {[%clk 0:00:05.9]} 60.
Be3 {[%clk 0:00:23.2]} 60... Bc5 {[%clk 0:00:06.1]} 61. Bd2 {[%clk 0:00:21.2]}
61... Bd4 {[%clk 0:00:05.9]} 62. Bf4 {[%clk 0:00:20.6]} 62... Bb2 {[%clk
0:00:06]} 63. Be3 {[%clk 0:00:19.9]} 63... Be5 {[%clk 0:00:05.6]} 64. Bf2 {[%clk
0:00:19.7]} 64... Bd6 {[%clk 0:00:05.5]} 65. Be3 {[%clk 0:00:19.9]} 65... Bc5
{[%clk 0:00:05.7]} 66. Bf4 {[%clk 0:00:20]} 66... Bf2 {[%clk 0:00:05.9]} 67. Bd2
{[%clk 0:00:19.6]} 67... Kc5 {[%clk 0:00:05.2]} 68. Bc3 {[%clk 0:00:18.4]} 68...
Bg1 {[%clk 0:00:05.2]} 69. Bd2 {[%clk 0:00:18.4]} 69... Kd5 {[%clk 0:00:05.2]}
70. Bc3 {[%clk 0:00:18.1]} 70... Bc5 {[%clk 0:00:04.8]} 71. Bb2 {[%clk
0:00:17.6]} 71... Bd6 {[%clk 0:00:04.7]} 72. Bc3 {[%clk 0:00:17.6]} 72... Be5
{[%clk 0:00:04.7]} 73. Bd2 {[%clk 0:00:17.5]} 73... Bf6 {[%clk 0:00:04]} 74. Be3
{[%clk 0:00:17.4]} 74... Bg7 {[%clk 0:00:03.9]} 75. Bf2 {[%clk 0:00:17.3]} 75...
Be5 {[%clk 0:00:04.1]} 1/2-1/2

[Event "*** Titled Tuesday Blitz"]
[Site "Chess.com"]
[Date "2020.05.05"]
[Round "3"]
[White "BlackBoarder"]
[Black "Pittiplatsh"]
[Result "0-1"]
[WhiteElo "2691"]
[BlackElo "2509"]
[TimeControl "180+1"]
[EndTime "10:31:11 PDT"]
[Termination "Pittiplatsh won by checkmate"]

1. e4 {[%clk 0:03:00.4]} 1... c5 {[%clk 0:02:59.4]} 2. Nf3 {[%clk 0:03:00.4]}
2... d6 {[%clk 0:02:59.2]} 3. c3 {[%clk 0:03:00.5]} 3... Nf6 {[%clk 0:02:55.6]}
4. h3 {[%clk 0:03:00.8]} 4... Bd7 {[%clk 0:02:53.4]} 5. Bd3 {[%clk 0:03:01.2]}
5... Bc6 {[%clk 0:02:53.1]} 6. Qe2 {[%clk 0:03:01]} 6... e5 {[%clk 0:02:45.4]}
7. Bc2 {[%clk 0:03:00.5]} 7... Be7 {[%clk 0:02:45.6]} 8. d4 {[%clk 0:03:00.3]}
8... Qc7 {[%clk 0:02:32.2]} 9. O-O {[%clk 0:02:58.1]} 9... O-O {[%clk 0:02:32]}
10. dxe5 {[%clk 0:02:55.7]} 10... dxe5 {[%clk 0:02:31.5]} 11. Bg5 {[%clk
0:02:55.8]} 11... Nbd7 {[%clk 0:02:30.8]} 12. Nbd2 {[%clk 0:02:54.9]} 12... b5
{[%clk 0:02:28]} 13. a4 {[%clk 0:02:53.6]} 13... a6 {[%clk 0:02:27.8]} 14. axb5
{[%clk 0:02:52.4]} 14... axb5 {[%clk 0:02:27.9]} 15. Rfd1 {[%clk 0:02:49.4]}
15... c4 {[%clk 0:02:25.3]} 16. Nf1 {[%clk 0:02:46.8]} 16... Nc5 {[%clk
0:02:20.3]} 17. N3d2 {[%clk 0:02:28.1]} 17... Rxa1 {[%clk 0:02:07.2]} 18. Rxa1
{[%clk 0:02:27.6]} 18... h6 {[%clk 0:02:04.3]} 19. Bxf6 {[%clk 0:02:26.2]} 19...
Bxf6 {[%clk 0:02:03.8]} 20. Ne3 {[%clk 0:02:13.3]} 20... Rd8 {[%clk 0:01:56.5]}
21. Ng4 {[%clk 0:02:03.8]} 21... Be7 {[%clk 0:01:50.4]} 22. Nf3 {[%clk
0:02:02.5]} 22... Nd3 {[%clk 0:01:29.5]} 23. b3 {[%clk 0:01:41.4]} 23... Bc5
{[%clk 0:01:18.9]} 24. bxc4 {[%clk 0:01:37.1]} 24... bxc4 {[%clk 0:01:19.8]} 25.
Rd1 {[%clk 0:01:34.6]} 25... h5 {[%clk 0:00:58.7]} 26. Ne3 {[%clk 0:01:31.7]}
26... Bxe4 {[%clk 0:00:47.9]} 27. Nd2 {[%clk 0:01:07.9]} 27... Nxf2 {[%clk
0:00:33.4]} 28. Qxf2 {[%clk 0:00:30.7]} 28... Bxc2 {[%clk 0:00:32.3]} 29. Re1
{[%clk 0:00:28.8]} 29... Bd3 {[%clk 0:00:30.9]} 30. Kh1 {[%clk 0:00:23.4]} 30...
Qb6 {[%clk 0:00:29.7]} 31. Qg3 {[%clk 0:00:19.9]} 31... Qg6 {[%clk 0:00:29.5]}
32. Qxg6 {[%clk 0:00:17.8]} 32... Bxg6 {[%clk 0:00:29.4]} 33. Ndxc4 {[%clk
0:00:17.8]} 33... f6 {[%clk 0:00:29.7]} 34. Rc1 {[%clk 0:00:11]} 34... Rd3
{[%clk 0:00:28.4]} 35. Nf1 {[%clk 0:00:08.5]} 35... Be4 {[%clk 0:00:25.1]} 36.
Kh2 {[%clk 0:00:08.2]} 36... h4 {[%clk 0:00:24.7]} 37. Ncd2 {[%clk 0:00:07.8]}
37... Bc6 {[%clk 0:00:22.8]} 38. c4 {[%clk 0:00:08.1]} 38... e4 {[%clk
0:00:19.9]} 39. Re1 {[%clk 0:00:07.2]} 39... e3 {[%clk 0:00:19.5]} 40. Nf3
{[%clk 0:00:07.5]} 40... Bxf3 {[%clk 0:00:17.6]} 41. gxf3 {[%clk 0:00:08.4]}
41... f5 {[%clk 0:00:17.3]} 42. f4 {[%clk 0:00:08]} 42... Bd6 {[%clk 0:00:16.8]}
43. Kg2 {[%clk 0:00:03.2]} 43... Bxf4 {[%clk 0:00:16.9]} 44. Kf3 {[%clk
0:00:03.7]} 44... Bg5 {[%clk 0:00:16.8]} 45. Nxe3 {[%clk 0:00:03.7]} 45... Rc3
{[%clk 0:00:17.1]} 46. Kf2 {[%clk 0:00:03.3]} 46... Bxe3+ {[%clk 0:00:16.7]} 47.
Rxe3 {[%clk 0:00:03.4]} 47... Rxe3 {[%clk 0:00:16.7]} 48. Kxe3 {[%clk
0:00:03.6]} 48... g5 {[%clk 0:00:15.8]} 49. c5 {[%clk 0:00:02.3]} 49... Kf7
{[%clk 0:00:16.2]} 50. Kd4 {[%clk 0:00:02.8]} 50... Ke7 {[%clk 0:00:15.4]} 51.
Ke5 {[%clk 0:00:02.8]} 51... g4 {[%clk 0:00:15.5]} 52. hxg4 {[%clk 0:00:03.3]}
52... fxg4 {[%clk 0:00:15.5]} 53. Kf4 {[%clk 0:00:03.7]} 53... g3 {[%clk
0:00:15.8]} 54. Kf3 {[%clk 0:00:03.9]} 54... Kd7 {[%clk 0:00:16]} 55. Kg2 {[%clk
0:00:04.4]} 55... Kc6 {[%clk 0:00:16.5]} 56. Kh3 {[%clk 0:00:04.9]} 56... Kxc5
{[%clk 0:00:16.8]} 57. Kg2 {[%clk 0:00:04.3]} 57... Kd4 {[%clk 0:00:16.5]} 58.
Kh3 {[%clk 0:00:04.7]} 58... Ke3 {[%clk 0:00:16.7]} 59. Kg2 {[%clk 0:00:04.3]}
59... Ke2 {[%clk 0:00:16.5]} 60. Kg1 {[%clk 0:00:03.9]} 60... Kf3 {[%clk
0:00:16]} 61. Kf1 {[%clk 0:00:03.7]} 61... h3 {[%clk 0:00:15.6]} 62. Kg1 {[%clk
0:00:04.2]} 62... g2 {[%clk 0:00:15.9]} 63. Kh2 {[%clk 0:00:04.1]} 63... Kf2
{[%clk 0:00:16.3]} 64. Kxh3 {[%clk 0:00:04.7]} 64... g1=Q {[%clk 0:00:16.2]} 65.
Kh4 {[%clk 0:00:05.2]} 65... Kf3 {[%clk 0:00:16.5]} 66. Kh5 {[%clk 0:00:05.3]}
66... Kf4 {[%clk 0:00:16.7]} 67. Kh6 {[%clk 0:00:05.8]} 67... Kf5 {[%clk
0:00:17]} 68. Kh7 {[%clk 0:00:06.3]} 68... Kf6 {[%clk 0:00:17.3]} 69. Kh6 {[%clk
0:00:06.8]} 69... Qh1# {[%clk 0:00:16.9]} 0-1

[Event "*** Titled Tuesday Blitz"]
[Site "Chess.com"]
[Date "2020.05.05"]
[Round "3"]
[White "Shuvatkin_Vladimir"]
[Black "sotochess"]
[Result "0-1"]
[WhiteElo "2323"]
[BlackElo "2163"]
[TimeControl "180+1"]
[EndTime "10:31:11 PDT"]
[Termination "sotochess won by resignation"]

1. d4 {[%clk 0:03:00.9]} 1... Nf6 {[%clk 0:02:59.2]} 2. Nf3 {[%clk 0:03:00.5]}
2... g6 {[%clk 0:02:58.7]} 3. g3 {[%clk 0:03:01.4]} 3... Bg7 {[%clk 0:02:58.4]}
4. Bg2 {[%clk 0:03:02.3]} 4... O-O {[%clk 0:02:58.2]} 5. O-O {[%clk 0:03:02.8]}
5... d6 {[%clk 0:02:58.1]} 6. c4 {[%clk 0:03:03]} 6... Nc6 {[%clk 0:02:58.5]} 7.
Nc3 {[%clk 0:03:03.1]} 7... Bg4 {[%clk 0:02:57.4]} 8. h3 {[%clk 0:03:00.6]} 8...
Bxf3 {[%clk 0:02:57.2]} 9. exf3 {[%clk 0:03:00.3]} 9... Nd7 {[%clk 0:02:56.2]}
10. Be3 {[%clk 0:02:59.9]} 10... e5 {[%clk 0:02:55.2]} 11. Ne2 {[%clk
0:02:53.2]} 11... Nb6 {[%clk 0:02:46.8]} 12. Rc1 {[%clk 0:02:51.2]} 12... Re8
{[%clk 0:02:38.8]} 13. f4 {[%clk 0:02:50.4]} 13... exd4 {[%clk 0:02:38.3]} 14.
Nxd4 {[%clk 0:02:50.1]} 14... Qd7 {[%clk 0:02:38.2]} 15. c5 {[%clk 0:02:42.2]}
15... Bxd4 {[%clk 0:02:15.4]} 16. Bxd4 {[%clk 0:02:40.6]} 16... dxc5 {[%clk
0:02:15.3]} 17. Bxc5 {[%clk 0:02:33.4]} 17... Rad8 {[%clk 0:02:12.3]} 18. Qxd7
{[%clk 0:02:27.8]} 18... Rxd7 {[%clk 0:02:11.7]} 19. Bxc6 {[%clk 0:02:27.3]}
19... bxc6 {[%clk 0:02:11.6]} 20. Bxb6 {[%clk 0:02:25.6]} 20... cxb6 {[%clk
0:02:08.5]} 21. Rxc6 {[%clk 0:02:25.4]} 21... Re2 {[%clk 0:02:07.9]} 22. a4
{[%clk 0:02:19.3]} 22... Rxb2 {[%clk 0:02:06.7]} 23. a5 {[%clk 0:02:19.7]} 23...
b5 {[%clk 0:02:01]} 24. a6 {[%clk 0:02:18]} 24... b4 {[%clk 0:02:00.9]} 25. Rc8+
{[%clk 0:02:11.9]} 25... Kg7 {[%clk 0:02:00.3]} 26. Rb8 {[%clk 0:02:10.5]} 26...
Rd6 {[%clk 0:01:59.9]} 27. Ra1 {[%clk 0:02:08.8]} 27... Rdd2 {[%clk 0:01:59.4]}
28. Rf1 {[%clk 0:02:08.5]} 28... Rd6 {[%clk 0:01:58.2]} 29. Ra1 {[%clk
0:02:05.5]} 29... Rdd2 {[%clk 0:01:52.5]} 30. Rf1 {[%clk 0:02:00.4]} 30... Ra2
{[%clk 0:01:51.1]} 31. Rxb4 {[%clk 0:01:58.4]} 31... Rxa6 {[%clk 0:01:50.3]} 32.
Rb5 {[%clk 0:01:52.5]} 32... Raa2 {[%clk 0:01:46.1]} 33. f5 {[%clk 0:01:52.4]}
33... a6 {[%clk 0:01:46.2]} 34. Rc5 {[%clk 0:01:50.2]} 34... g5 {[%clk
0:01:45.2]} 35. Kg2 {[%clk 0:01:44.7]} 35... h5 {[%clk 0:01:44.6]} 36. Rc6
{[%clk 0:01:40.7]} 36... a5 {[%clk 0:01:43.6]} 37. Kf3 {[%clk 0:01:20.9]} 37...
a4 {[%clk 0:01:43.3]} 38. Ra6 {[%clk 0:01:19.8]} 38... Ra3+ {[%clk 0:01:42.4]}
39. Ke4 {[%clk 0:01:15.2]} 39... Re2+ {[%clk 0:01:38.4]} 40. Kd4 {[%clk
0:01:11.4]} 40... Rf3 {[%clk 0:01:36.7]} 41. Rxa4 {[%clk 0:01:07.8]} 41... Rxf5
{[%clk 0:01:31.6]} 42. Kd3 {[%clk 0:01:07.3]} 42... Re6 {[%clk 0:01:23.4]} 43.
Re4 {[%clk 0:01:03.7]} 43... Rf3+ {[%clk 0:01:20.7]} 44. Kd4 {[%clk 0:01:01.7]}
44... Ref6 {[%clk 0:01:19.9]} 45. Re2 {[%clk 0:01:00.8]} 45... Rxg3 {[%clk
0:01:19.5]} 46. fxg3 {[%clk 0:01:00.4]} 46... Rxf1 {[%clk 0:01:19]} 47. Ke3
{[%clk 0:01:00.7]} 47... Kg6 {[%clk 0:01:18.1]} 48. g4 {[%clk 0:00:54.9]} 48...
Rh1 {[%clk 0:01:14.6]} 49. gxh5+ {[%clk 0:00:47.3]} 49... Kxh5 {[%clk
0:01:14.5]} 50. Rf2 {[%clk 0:00:47.3]} 50... Rxh3+ {[%clk 0:01:13.8]} 51. Ke4
{[%clk 0:00:47.1]} 51... Kg6 {[%clk 0:01:13.7]} 52. Ra2 {[%clk 0:00:44.7]} 52...
Rb3 {[%clk 0:01:09.6]} 53. Ra6+ {[%clk 0:00:43.2]} 53... f6 {[%clk 0:01:09.3]}
54. Rc6 {[%clk 0:00:42.8]} 54... Rb4+ {[%clk 0:00:57.9]} 55. Kf3 {[%clk
0:00:42.8]} 55... Ra4 {[%clk 0:00:56.4]} 56. Rb6 {[%clk 0:00:42.4]} 56... Rf4+
{[%clk 0:00:56]} 57. Kg3 {[%clk 0:00:42.3]} 57... Kh5 {[%clk 0:00:56.1]} 58. Rb8
{[%clk 0:00:41.4]} 58... Ra4 {[%clk 0:00:51.2]} 59. Rh8+ {[%clk 0:00:39.7]}
59... Kg6 {[%clk 0:00:50.9]} 60. Rb8 {[%clk 0:00:39.7]} 60... Ra3+ {[%clk
0:00:48.8]} 61. Kf2 {[%clk 0:00:38.3]} 61... g4 {[%clk 0:00:48.7]} 62. Rb5
{[%clk 0:00:37]} 62... f5 {[%clk 0:00:48.2]} 63. Rc5 {[%clk 0:00:32]} 63... Kg5
{[%clk 0:00:47.2]} 64. Kg2 {[%clk 0:00:32.4]} 64... Ra2+ {[%clk 0:00:45]} 65.
Kg3 {[%clk 0:00:31.7]} 65... Ra3+ {[%clk 0:00:45.1]} 66. Kg2 {[%clk 0:00:31.9]}
66... Rf3 {[%clk 0:00:45.4]} 67. Rb5 {[%clk 0:00:31.3]} 67... Kh4 {[%clk
0:00:45.1]} 68. Rb8 {[%clk 0:00:29.5]} 68... Ra3 {[%clk 0:00:44.6]} 69. Rh8+
{[%clk 0:00:28.3]} 69... Kg5 {[%clk 0:00:44.3]} 70. Rg8+ {[%clk 0:00:28.2]}
70... Kf4 {[%clk 0:00:44.2]} 71. Rb8 {[%clk 0:00:28.2]} 71... Ra2+ {[%clk
0:00:43.8]} 72. Kg1 {[%clk 0:00:28.6]} 72... g3 {[%clk 0:00:41.6]} 73. Rb4+
{[%clk 0:00:27.2]} 73... Kg5 {[%clk 0:00:41.5]} 74. Kf1 {[%clk 0:00:27]} 74...
f4 {[%clk 0:00:41.4]} 75. Kg1 {[%clk 0:00:27.3]} 75... Kg4 {[%clk 0:00:41.4]}
76. Rb3 {[%clk 0:00:24.3]} 76... Kh3 {[%clk 0:00:39.7]} 77. Rb1 {[%clk
0:00:17.2]} 77... f3 {[%clk 0:00:39]} 78. Rf1 {[%clk 0:00:15.6]} 78... Rg2+
{[%clk 0:00:38.4]} 79. Kh1 {[%clk 0:00:15.7]} 79... Rh2+ {[%clk 0:00:39.3]} 80.
Kg1 {[%clk 0:00:16.2]} 80... f2+ {[%clk 0:00:40.1]} 0-1